{"text_format":"1","workbook":"xlsx","n_sheets":14,"sheets":["Eingabeblatt","Abschluss Angaben","Bestände","Forderungen aus L+L","nicht fakt. Dienstleistungen","Vorräte","Uebrige Guthaben","Verbindlichkeiten aus L+L","Uebrige Schulden","Ergänzende Angaben","Eigenbezüge","Angaben Anhang","InfoAbschlussAngaben","Zusatzinfos Abschluss"],"not_rendered":{"charts":0,"images":41,"macros":1,"external_links":1,"defined_names":31,"comments":0,"pivot_tables":0},"unopened":[],"bounds":{"document_bytes":16777216,"sheet_cells":100000,"rows_first":2000,"rows_last":500,"rows_between":2000,"halvings":0,"cell_chars":16384,"cell_head_chars":4096},"cells_cut":0,"cells_raw":0,"read":"whole","date_system":"1900"}

{"sheet":"Eingabeblatt","index":0,"n_rows":24,"n_cols":6,"rows_kept":24,"cut":false,"hidden":false,"merged":[]}
["InfoZeigen",0]
["Kunde",null,"Firma (Stempel)"]
[]
["Kundennr.",null," "]
[]
["Berater"]
[]
["Erstellungsdatum",{"$f":"TODAY()","v":"2023-12-14"}]
[null,null,null,null,null,"."]
["Berater"]
[]
["Beginn Geschäftsjahr"]
[]
["Ende Geschäftsjahr"]
[]
["Adresse 1"]
[]
["Adresse 2"]
[]
["NL Name"]
[]
["NL Adresse1","Eichwaldstrasse 13"]
[]
["NL Adresse 2","6002 Luzern"]

{"sheet":"Abschluss Angaben","index":1,"n_rows":39,"n_cols":2,"rows_kept":39,"cut":false,"hidden":false,"merged":[]}
[]
[]
[]
[]
[]
[]
[]
["Gewerbe-Treuhand AG"]
["Eichwaldstrasse 13"]
["6002 Luzern"]
[" "]
[]
[]
[]
[]
[]
[]
[]
[]
["Abschlussangaben"]
[]
[]
[]
[]
["Abschluss Datum:",{"$f":"EndeGJ","v":"00:00:00"}]
[]
["Name:",{"$f":"Kunde","v":0}]
[]
["Adresse:",{"$f":"Adresse1","v":0}]
[null,{"$f":"Adresse2","v":0}]
[]
[]
[]
["Datum:",{"$f":"TODAY()","v":"2023-12-14"}]
[]
[]
[]
[]
["Unterschrift:"]

{"sheet":"Bestände","index":2,"n_rows":28,"n_cols":3,"rows_kept":28,"cut":false,"hidden":false,"merged":[]}
[]
[]
[{"$f":"KDNR","v":" "}]
[]
[{"$f":"IF(ISBLANK(Kunde),Eingabeblatt!C2,Kunde)","v":"Firma (Stempel)"}]
[{"$f":"Adresse1","v":0}]
[{"$f":"Adresse2","v":0}]
[]
["1. Bestände per "]
[]
[]
[]
[null,null,"Bestand CHF"]
[1.1000000000000001,"Kasse"]
[1.2,"Postkonto"]
[]
[1.3,"Banken"]
[]
[]
[]
[]
[]
[]
[]
[]
[]
[1.4,"WIR"]
[null,"WIR-Barkonto"]

{"sheet":"Forderungen aus L+L","index":3,"n_rows":36,"n_cols":7,"rows_kept":36,"cut":false,"hidden":false,"merged":[[9,0,9,1],[35,0,35,1]]}
[null,null,null,null,null,null,"8.1%"]
[null,null,null,null,null,null,"8.0%"]
[{"$f":"KDNR","v":" "},null,null,null,null,null,"7.7%"]
[null,null,null,null,null,null,"2.6%"]
[{"$f":"IF(ISBLANK(Kunde),Eingabeblatt!C2,Kunde)","v":"Firma (Stempel)"},null,null,null,null,null,"2.5%"]
[{"$f":"Adresse1","v":0},null,null,null,null,null,"2.4%"]
[{"$f":"Adresse2","v":0},null,null,null,null,null,"3.8%"]
[null,null,null,null,null,null,"3.7%"]
["2. Kundenguthaben per ",null," ",null,null,null,"0.0%"]
["Forderungen aus Lieferungen und Leistungen"]
[]
[]
["Rechnungs-datum","Kunde","MWST-Satz %","Kontierung","Restguthaben am Abschlusstag CHF inkl. MWST","Rating"]
[]
[]
[]
[]
[]
[]
[]
[]
[]
[]
[]
[]
[]
[]
[]
[]
[]
[]
[]
[]
[]
[]
["Übertrag auf Seite 2",null,null,null,{"$f":"SUM(E14:E35)","v":0}]

{"sheet":"nicht fakt. Dienstleistungen","index":4,"n_rows":37,"n_cols":5,"rows_kept":37,"cut":false,"hidden":false,"merged":[[11,0,11,1]]}
[]
[]
[{"$f":"KDNR","v":" "}]
[]
[{"$f":"IF(ISBLANK(Kunde),Eingabeblatt!C2,Kunde)","v":"Firma (Stempel)"}]
[{"$f":"Adresse1","v":0}]
[{"$f":"Adresse2","v":0}]
[]
["3. Nicht fakturierte Dienstleistungen per "]
["(vormals Angefangene Arbeiten)"]
[]
[]
["Kunde","Auftragssum-me CHF","Arbeitsleistung CHF","Teilzahlungen CHF","Restguthaben CHF"]
[null,null,null,null,{"$f":"IF(D14=0,C14,C14-D14)","v":0}]
[null,null,null,null,0]
[null,null,null,null,0]
[null,null,null,null,0]
[null,null,null,null,0]
[null,null,null,null,0]
[null,null,null,null,0]
[null,null,null,null,0]
[null,null,null,null,0]
[null,null,null,null,0]
[null,null,null,null,0]
[null,null,null,null,0]
[null,null,null,null,0]
[null,null,null,null,0]
[null,null,null,null,0]
[null,null,null,null,0]
[null,null,null,null,0]
[null,null,null,null,0]
[null,null,null,null,0]
[null,null,null,null,0]
[null,null,null,null,0]
[null,null,null,null,0]
[null,null,null,null,0]
["Total",{"$f":"SUM(B14:B36)","v":0},{"$f":"SUM(C14:C36)","v":0},{"$f":"SUM(D14:D36)","v":0},{"$f":"SUM(E14:E36)","v":0}]

{"sheet":"Vorräte","index":5,"n_rows":37,"n_cols":5,"rows_kept":37,"cut":false,"hidden":false,"merged":[]}
[]
[]
[{"$f":"KDNR","v":" "}]
[]
[{"$f":"IF(ISBLANK(Kunde),Eingabeblatt!C2,Kunde)","v":"Firma (Stempel)"}]
[{"$f":"Adresse1","v":0}]
[{"$f":"Adresse2","v":0}]
[]
["4. Waren-/Materiallager per "]
[]
[]
[]
[]
["Art (Artikelbezeichnung)","Stückzahl","Einzelpreis CHF","Wertberichti-gung CHF","Gesamtpreis CHF"]
[null,null,null,null,{"$f":"IF(ISNUMBER(C15),B15*C15+D15,\"\")","v":""}]
[null,null,null,null,{"$f":"IF(ISNUMBER(C16),B16*C16+D16,\"\")","v":""}]
[null,null,null,null,""]
[null,null,null,null,""]
[null,null,null,null,""]
[null,null,null,null,""]
[null,null,null,null,""]
[null,null,null,null,""]
[null,null,null,null,""]
[null,null,null,null,""]
[null,null,null,null,""]
[null,null,null,null,""]
[null,null,null,null,""]
[null,null,null,null,""]
[null,null,null,null,""]
[null,null,null,null,""]
[null,null,null,null,""]
[null,null,null,null,""]
[null,null,null,null,""]
[null,null,null,null,""]
[null,null,null,null,""]
[null,null,null,null,""]
["Total",null,null,{"$f":"SUM(D15:D36)","v":0},{"$f":"SUM(E15:E36)","v":0}]

{"sheet":"Uebrige Guthaben","index":6,"n_rows":37,"n_cols":7,"rows_kept":37,"cut":false,"hidden":false,"merged":[]}
[null,null,null,null,null,null,"8.1%"]
[null,null,null,null,null,null,"8.0%"]
[{"$f":"KDNR","v":" "},null,null,null,null,null,"7.7%"]
[null,null,null,null,null,null,"2.6%"]
[{"$f":"IF(ISBLANK(Kunde),Eingabeblatt!C2,Kunde)","v":"Firma (Stempel)"},null,null,null,null,null,"2.5%"]
[{"$f":"Adresse1","v":0},null,null,null,null,null,"2.4%"]
[{"$f":"Adresse2","v":0},null,null,null,null,null,"3.8%"]
[null,null,null,null,null,null,"3.7%"]
["5. Übrige Guthaben per ",null,null,null,null,null,"0.0%"]
["Übrige kurzfristige Forderungen"]
[]
[]
["Rechnungs-datum","Name","Leistungszeitraum","Kontierung","MWST-Satz %","Betrag CHF"]
[]
[]
[]
[]
[]
[]
[]
[]
[]
[]
[]
[]
[]
[]
[]
[]
[]
[]
[]
[]
[]
[]
[]
["Total",null,null,null,null,{"$f":"SUM(F14:F36)","v":0}]

{"sheet":"Verbindlichkeiten aus L+L","index":7,"n_rows":37,"n_cols":7,"rows_kept":37,"cut":false,"hidden":false,"merged":[[36,0,36,1]]}
[null,null,null,null,null,null,"8.1%"]
[null,null,null,null,null,null,"8.0%"]
[{"$f":"KDNR","v":" "},null,null,null,null,null,"7.7%"]
[null,null,null,null,null,null,"2.6%"]
[{"$f":"IF(ISBLANK(Kunde),Eingabeblatt!C2,Kunde)","v":"Firma (Stempel)"},null,null,null,null,null,"2.5%"]
[{"$f":"Adresse1","v":0},null,null,null,null,null,"2.4%"]
[{"$f":"Adresse2","v":0},null,null,null,null,null,"3.8%"]
[null,null,null,null,null,null,"3.7%"]
["6. Waren- und Materialschulden per ",null,null,null,null,null,"0.0%"]
["Verbindlichkeiten aus Lieferungen und Leistungen"]
[]
[]
["Rechnungs-datum","Lieferant ","MWST-Satz %","Kontierung","Betrag inkl. MWST CHF","Betrag exkl. MWST CHF"]
[]
[]
[]
[]
[]
[]
[]
[]
[]
[]
[]
[]
[]
[]
[]
[]
[]
[]
[]
[]
[]
[]
[]
["Übertrag auf Seite 2",null,null,null,{"$f":"SUM(E14:E36)","v":0},{"$f":"SUM(F14:F36)","v":0}]

{"sheet":"Uebrige Schulden","index":8,"n_rows":37,"n_cols":8,"rows_kept":37,"cut":false,"hidden":false,"merged":[[36,0,36,1]]}
[null,null,null,null,null,null,null,"8.1%"]
[null,null,null,null,null,null,null,"8.0%"]
[{"$f":"KDNR","v":" "},null,null,null,null,null,null,"7.7%"]
[null,null,null,null,null,null,null,"2.6%"]
[{"$f":"IF(ISBLANK(Kunde),Eingabeblatt!C2,Kunde)","v":"Firma (Stempel)"},null,null,null,null,null,null,"2.5%"]
[{"$f":"Adresse1","v":0},null,null,null,null,null,null,"2.4%"]
[{"$f":"Adresse2","v":0},null,null,null,null,null,null,"3.8%"]
[null,null,null,null,null,null,null,"3.7%"]
["7. Übrige Schulden per ",null,null,null,null,null,null,"0.0%"]
["Übrige kurzfristige Verbindlichkeiten"]
[]
[]
["Rechnungs-datum","Lieferant oder Rechnungssteller","wofür / Leistungszeit-raum","MWST-Satz %","Kontierung","Betrag inkl. MWST CHF","Betrag exkl. MWST CHF"]
[]
[]
[]
[]
[]
[]
[]
[]
[]
[]
[]
[]
[]
[]
[]
[]
[]
[]
[]
[]
[]
[]
[]
["Übertrag auf Seite 2",null,null,null,null,{"$f":"SUM(F14:F36)","v":0},{"$f":"SUM(G14:G36)","v":0}]

{"sheet":"Ergänzende Angaben","index":9,"n_rows":67,"n_cols":7,"rows_kept":67,"cut":false,"hidden":false,"merged":[[28,1,28,2],[29,1,29,2],[30,1,30,2],[24,1,24,2],[27,1,27,2],[25,1,25,2],[26,1,26,2],[40,0,40,4],[34,0,34,4],[35,0,35,4],[38,0,38,4],[36,0,36,4],[37,0,37,4],[39,0,39,4]]}
[null,null,null,null,null,null,"8.1%"]
[null,null,null,null,null,null,"8.0%"]
[{"$f":"KDNR","v":" "},null,null,null,null,null,"7.7%"]
[null,null,null,null,null,null,"2.6%"]
[{"$f":"IF(ISBLANK(Kunde),Eingabeblatt!C2,Kunde)","v":"Firma (Stempel)"},null,null,null,null,null,"2.5%"]
[{"$f":"Adresse1","v":0},null,null,null,null,null,"2.4%"]
[{"$f":"Adresse2","v":0},null,null,null,null,null,"3.8%"]
[null,null,null,null,null,null,"3.7%"]
["8. Ergänzende Angaben per ",null,null,null,null,null,"0.0%"]
[]
[]
["8.1 Statistikangaben"]
[]
["Anzahl der beschäftigten Personen im Durchschnitt des vergangenen Geschäftsjahres"]
[]
[]
["Angestellte (ohne Betriebsinhaber/-in und ohne Ehefrau/-mann)"]
["Mitarbeit Ehefrau/-mann in %"]
["Lernende"]
[]
["Total Stellenprozente"]
[]
["8.2 Verrechnungen ohne Geldverkehr"]
[]
["Lieferant","für was",null,"MWST-Satz %","Eigene Lieferung CHF","Fremde Lieferung CHF"]
[]
[]
[]
[]
[]
[]
[]
["8.3 Eigene Arbeiten an Liegenschaften und Betriebseinrichtungen"]
[]
["Art der Arbeiten",null,null,null,null,"Wert der Leistung CHF"]
[]
[]
[]
[]
[]
[]
[]
[]
[{"$f":"KDNR","v":" "}]
[]
[{"$f":"IF(ISBLANK(Kunde),Eingabeblatt!C2,Kunde)","v":"Firma (Stempel)"}]
[{"$f":"Adresse1","v":0}]
[{"$f":"Adresse2","v":0}]
[]
["8.4 Bezahlte Anschaffungen"]
[]
["Lieferant","Bezeichnung der Neuanschaffung","Datum Inbetrieb- nahme","Geplante Nutzungs- dauer","Datum der Zahlung","Anschaffungs- preis CHF"]
[]
[]
[]
[]
[]
[]
[]
[]
[]
[]
[]
[]
["8.5 Zusätzliche Unterlagen"]
[]
["Haben Sie daran gedacht uns, wenn vorhanden, folgende Unterlagen zuzustellen:"]

{"sheet":"Eigenbezüge","index":10,"n_rows":27,"n_cols":7,"rows_kept":27,"cut":false,"hidden":false,"merged":[[35,2,35,3],[36,2,36,3],[30,2,30,3],[31,2,31,3],[32,2,32,3],[34,2,34,3],[26,2,26,3],[27,2,27,3],[28,2,28,3],[29,2,29,3],[33,2,33,3]]}
[]
[]
[{"$f":"KDNR","v":" "}]
[]
[{"$f":"IF(ISBLANK(Kunde),Eingabeblatt!C2,Kunde)","v":"Firma (Stempel)"}]
[{"$f":"Adresse1","v":0}]
[{"$f":"Adresse2","v":0}]
[]
["9. Eigenbezüge und Naturallöhne für das Jahr "]
[]
[]
["9.1  Familienangehörige"]
[]
["Name","Vorname","Mitarbeit im Betrieb ","Alter","Anzahl Ver- pflegungs- monate","Kost","Logis"]
[]
[]
[]
[]
[]
[]
[]
[]
[]
[]
["9.2 Arbeitskräfte Betrieb"]
[]
["Name","Vorname","Tätigkeit",null,"Anzahl Ver- pflegungs- monate","Kost","Logis"]

{"sheet":"Angaben Anhang","index":11,"n_rows":61,"n_cols":5,"rows_kept":61,"cut":false,"hidden":false,"merged":[[16,0,16,7],[17,0,17,7],[55,0,55,7],[18,0,18,7],[62,0,62,7],[40,0,40,7],[41,0,41,7],[42,0,42,7],[63,0,63,7],[64,0,64,7],[56,0,56,7],[54,0,54,7],[47,0,47,7],[48,0,48,7],[49,0,49,7]]}
[]
[]
[{"$f":"KDNR","v":" "}]
[]
[{"$f":"IF(ISBLANK(Kunde),Eingabeblatt!C2,Kunde)","v":"Firma (Stempel)"}]
[{"$f":"Adresse1","v":0}]
[{"$f":"Adresse2","v":0}]
[]
["10. Angaben zum Anhang für juristische Personen per "]
[]
[]
["10.1 Leasingverträge"]
[null,null,null,null," "]
[]
["Bitte neu abgeschlossene Leasingverträge beilegen"]
[]
[]
[]
[]
[]
[]
["10.2 Bürgschaften"]
[]
["Ist die juristische Person Bürgschaften gegenüber Dritten eingegangen?"]
[]
["Wenn Ja: Fotokopie der Bürgschaftsverpflichtung beilegen"]
[]
[]
[]
[]
[{"$f":"KDNR","v":" "}]
[]
[]
["10.3 Pfandbestellungen und Garantieverpflichtungen zugunsten Dritter"]
[]
["Haben Sie gegenüber dem Vorjahr Grundpfandverpflichtungen oder Schuldbriefe errichtet oder gelöscht?"]
[]
[]
["Wenn Ja: Bitte Änderungen notieren, bzw. Kopien beilegen"]
[]
[]
[]
[]
[]
[]
["10.4 Verpfändete oder abgetretene Aktiven zur Sicherung eigener Verpflichtungen"]
[]
[]
[]
[]
[]
[]
["10.5 Aktiven unter Eigentumsvorbehalt, z.B. Debitorenzession"]
[]
[]
[]
[]
[]
[]
[]
["10.6 weitere Angaben "]

{"sheet":"InfoAbschlussAngaben","index":12,"n_rows":46,"n_cols":2,"rows_kept":46,"cut":false,"hidden":false,"merged":[]}
[]
[]
[]
["Informationen zu den Abschlussangaben"]
[]
["Ihre Jahresrechnung wird anhand Ihrer Abschlussangaben erstellt. Füllen Sie diese bitte vollständig und exakt"]
["gemäss unserer Vorlage aus. Die Hinweise in den Zusatzinfos Abschluss oder in den Infoboxen auf den ein-"]
["zelnen Registern helfen Ihnen dabei. Können zu einzelnen Positionen keine Angaben gemacht werden oder er-"]
["achten Sie diese für Ihren Betrieb als nicht notwendig, vermerken Sie dies bitte entsprechend."]
[]
["Sorgfältig ausgefüllte Unterlagen erleichtern die Erstellung der Jahresrechnung und vermindern"]
["Rückfragen und Abklärungen. Damit ermöglichen Sie eine reibungslose Verarbeitung."]
[]
[]
["Form und Inhalt selbst erstellter Unterlagen"]
["Wenn Sie eine eigene Debitoren- oder Kreditorenbuchhaltung mittels EDV führen, können Sie auch Ihre Listen"]
["verwenden. Dies gilt ebenso für andere EDV-Auswertungen wie zum Beispiel selbst erstellte Abschlussunter-"]
["lagen auf Excel. Diese Listen und Tabellen müssen aber dieselben Informationen enthalten, welche auf unseren"]
["Abschlussangaben vorgegeben sind. Vergessen Sie nicht, die Abschlussangaben auf der ersten Seite, Ihre"]
["EDV-Auswertungen in Papierform sowie alle übrigen Unterlagen zu unterzeichnen. Sollten wir Ihre Angaben "]
["zusätzlich in EDV-Form benötigen, werden wir uns mit Ihnen in Verbindung setzen."]
[]
[]
["Zusätzliche Unterlagen"]
["Die Jahresrechnung ist ein wirkungsvolles Führungsinstrument für Ihr Unternehmen. Sie gilt als Zeugnis des "]
["vergangenen Jahres und ist eine Entscheidungsgrundlage für die Zukunft. Es ist wichtig, dass dieses Führungs-"]
["instrument eine hohe Qualität aufweist. Um dies zu erreichen, müssen nebst den Abschlussunterlagen noch zu-"]
["sätzliche Informationen berücksichtigt werden. Reichen Sie uns deshalb, wenn möglich und vorhanden, mit den"]
["Abschlussangaben folgende Unterlagen ein:"]
[]
["- Kopie Post und Bankauszüge per Abschlussdatum inkl. Zinsausweis"]
["- Kopie Saldo- und Zinsbescheinigungen Kredit- und Hypothekardarlehen"]
["- Kopie Depotauszug Wertschriften"]
["- Kopie Jahresabrechnung Sozialversicherungen (AHV, UVG, BVG, KTG, etc.)"]
["- Kopie AHV-Schlussabrechnung Selbständigerwerbende"]
["- Kopie neuer Darlehen-, Kredit- und Leasingverträge"]
["- Angaben über Verrechnungen Debitoren-/Kreditorenrechnungen"]
["- Lohnausweis (evtl. Lohnabrechnungen) Aktionäre, Verwaltungsräte"]
["- Kopie Police Krankentaggeld-Versicherung"]
["- Kopie Sammelausweis Pensionskasse"]
["- Kopie Anschlussvertrag Pensionskasse"]
[]
[]
[null,"Wir bitten Sie die gelben Flächen der folgenden Formulare auszufüllen."]
[]
["Bei Fragen für die Zusammenstellung der Abschlussangaben steht Ihnen Ihr Berater gerne zur Verfügung."]

{"sheet":"Zusatzinfos Abschluss","index":13,"n_rows":90,"n_cols":1,"rows_kept":90,"cut":false,"hidden":false,"merged":[]}
[]
[]
[]
["Informationen zum Ausfüllen der Abschlussangaben"]
[]
[]
["1. Bestände:"]
["PC-Rap-WIN-Kunden: Bitte Jahresendverarbeitung beilegen"]
["Kopien der Zins- und Kapitalbestätigungen der Bankkonti, Hypotheken, Darlehen usw. in Papierform beilegen"]
["Bitte bei Post- und Bankkonti die Kontennummer auch erfassen"]
[]
[]
["2. Kundenguthaben"]
["Bis zum Abschluss gestellte und nicht bezahlte Rechungen an Kunden. Beträge inkl. MWST. Guthaben,"]
["welche ganz oder teilweise gefährdet sind, sind in der Spalte Rating mit einem X zu kennzeichnen."]
[]
[]
["3. Nicht fakturierte Dienstleistungen, Halb- und Fertigfabrikate"]
["Bis zum Abschlusstag geleistete, aber noch nicht in Rechnung gestellte Arbeiten und Dienstleistungen."]
[]
["Bedeutung der Feldinhalte:"]
["Auftragssumme: total zirka exkl. MWST"]
["Arbeitsleistung: bis zum Abschlusstag"]
["Teilzahlungen: des Kunden bis zum Abschlusstag"]
["Restguthaben: für geleistete Arbeiten bis zum Abschlusstag exkl. MWST"]
[]
[]
["4. Waren-/Materiallager"]
["Der Einzelpreis, sowie der Gesamtpreis sind ohne MWST zu erfassen. Markieren Sie das Feld zu Verkaufs-"]
["preisen oder zu Einstandspreisen. Bitte beachten Sie, dass alle Preise entweder zu Verkaufspreisen oder zu "]
["Einstandspreisen erfasst werden müssen."]
["Wertberichtigungen als Minusbetrag erfassen (Korreturmöglichkeit für Altbestände oder nicht aktuelle Ware)"]
[]
[]
["5. Übrige Guthaben"]
["Transitorische Aktiven"]
["z.B. Vorausbezahlte Versicherungsprämien oder Mietzinseinnahmen welche per Abschlusstag fällig waren,"]
["aber noch nicht bezahlt wurden. Der Betrag muss exklusive MWST erfasst werden."]
[]
[]
["6. Waren- und Materialschulden"]
["Nur Rechnungen, die den Waren- und Materialeinkauf betreffen. Weitere Schulden sind unter Übrige Schulden"]
["(Ziffer 7) einzutragen. Am Abschlusstag unbezahlte Rechnungen, die das Abschlussjahr betreffen"]
[]
[]
["7. Übrige Schulden"]
["(Unkosten, Privat, Steuern, Liegenschaft, Anschaffung)"]
["Am Abschlusstag unbezahlte Rechnungen, die das Abschlussjahr betreffen (Versicherungsprämien für das"]
["neue Geschäftsjahr nicht aufführen)"]
[]
[]
[]
[]
[]
["8. Ergänzende Angaben"]
["8.1  Verrechnung ohne Geldverkehr:"]
["Im verflossenen Geschäftsjahr erfolgte Verrechnungen ohne Verbuchung/Geldfluss. Wert für eigene und "]
["fremde Lieferungen in CHF angeben"]
[]
["8.2  Eigene Arbeiten an Liegenschaften und Betriebseinrichtungen:"]
["Im verflossenen Geschäftsjahr ausgeführte eigene Arbeiten ohne Verrechnung/Geldfluss. Wert der Leistung"]
["angeben"]
[]
["8.3  Bezahlte Anschaffungen:"]
["Maschinen, Fahrzeuge, Betriebseinrichtungen/Beträge über CHF 1’000.00 eintragen"]
[]
[]
["9. Eigenbezüge und Naturallöhne"]
["Ist nur von Detailhandels- und Gastwirtschaftsbetrieben auszufüllen. Familienangehörige und Arbeitskräfte,"]
["welche im Haushalt verpflegt werden"]
[]
["Die Spalten Mitarbeit im Betrieb, Kost sowie Logis müssen mit ja oder nein beantwortet werden."]
[]
[]
["10. Angaben zum Anhang für juristische Personen"]
["10.1  Leasingverträge:"]
["Fotokopie der laufenden Verträge beilegen"]
[]
["10.2 Bürgaschaften"]
["Fotokopie von Bürgschaftsvereinbarungen"]
[]
["10.3  Pfandbestellungen und Garantieverpflichtungen zugunsten Dritter:"]
["z.B. Schuldbriefe und Grundpfandverschreibungen auf Liegenschaften zugunsten Dritter"]
[]
["10.4  Verpfändete oder abgetretene Aktiven zur Sicherung eigener Verpflichtungen:"]
["z.B. Schuldbriefe und Grundpfandverschreibungen zugunsten der Bank, zur Sicherstellung von "]
["Hypothekardarlehen und Bankkrediten"]
[]
["10.5  Aktiven unter Eigentumsvorbehalt:"]
["detaillierte Aufstellung"]